{"text_format":"1","workbook":"xlsx","n_sheets":16,"sheets":["Injection Time Difference Chart","Injection Time Chart","Ignition Angle Chart","Ignition Data","Shut-Off Cyl Chart","Shut-Off Cyl Data","Air Flow Chart","Air Flow Data","Temperatures Chart","Temperatures Data","Inlet VANOS Chart","Exhaust VANOS Chart","VANOS Data","Speed Graph","Speed Data","Sheet1"],"not_rendered":{"charts":18,"images":0,"macros":1,"external_links":0,"defined_names":1,"comments":0,"pivot_tables":0},"unopened":[{"sheet":"Injection Time Difference Chart","index":0,"reason":"not_a_worksheet"},{"sheet":"Injection Time Chart","index":1,"reason":"not_a_worksheet"},{"sheet":"Ignition Angle Chart","index":2,"reason":"not_a_worksheet"},{"sheet":"Shut-Off Cyl Chart","index":4,"reason":"not_a_worksheet"},{"sheet":"Air Flow Chart","index":6,"reason":"not_a_worksheet"},{"sheet":"Temperatures Chart","index":8,"reason":"not_a_worksheet"},{"sheet":"Inlet VANOS Chart","index":10,"reason":"not_a_worksheet"},{"sheet":"Exhaust VANOS Chart","index":11,"reason":"not_a_worksheet"},{"sheet":"Speed Graph","index":13,"reason":"not_a_worksheet"}],"bounds":{"document_bytes":16777216,"sheet_cells":100000,"rows_first":2000,"rows_last":500,"rows_between":2000,"halvings":0,"cell_chars":16384,"cell_head_chars":4096},"cells_cut":0,"cells_raw":0,"read":"whole","date_system":"1900"}

{"sheet":"Ignition Data","index":3,"n_rows":3,"n_cols":12,"rows_kept":3,"cut":false,"hidden":false,"merged":[[0,0,0,1],[1,0,1,1]]}
["First Line",null,{"$f":"Sheet1!A1","v":0}]
["Last Line",null,{"$f":"Sheet1!A2","v":0}]
["Time","RPM","Injection Time #1","Injection Time #4","Ignition Angle","RPM / 100","Ignition Angle","RPM / 1000","Injection Time #1","Injection Time #4","RPM / 10000","Difference in Injection Time"]

{"sheet":"Shut-Off Cyl Data","index":5,"n_rows":3,"n_cols":8,"rows_kept":3,"cut":false,"hidden":false,"merged":[[0,0,0,1],[1,0,1,1]]}
["First Line",null,{"$f":"Sheet1!A1","v":0}]
["Last Line",null,{"$f":"Sheet1!A2","v":0}]
["Time","RPM","Speed","RPM / 1000","Speed (mph / 10)","No of Shut-Off Cyls","Throttle (%)","Throttle (% / 10)"]

{"sheet":"Air Flow Data","index":7,"n_rows":3,"n_cols":6,"rows_kept":3,"cut":false,"hidden":false,"merged":[[0,0,0,1],[1,0,1,1]]}
["First Line",null,{"$f":"Sheet1!A1","v":0}]
["Last Line",null,{"$f":"Sheet1!A2","v":0}]
["Time","RPM","Air mass","RPM / 100","Throttle Position %","Air mass / 10"]

{"sheet":"Temperatures Data","index":9,"n_rows":3,"n_cols":4,"rows_kept":3,"cut":false,"hidden":false,"merged":[[0,0,0,1],[1,0,1,1]]}
["First Line",null,{"$f":"Sheet1!A1","v":0}]
["Last Line",null,{"$f":"Sheet1!A2","v":0}]
["Time","Intake temp.","Coolant temp.","Oil temp."]

{"sheet":"VANOS Data","index":12,"n_rows":3,"n_cols":8,"rows_kept":3,"cut":false,"hidden":false,"merged":[[0,0,0,1],[1,0,1,1]]}
["First Line",null,{"$f":"Sheet1!A1","v":0}]
["Last Line",null,{"$f":"Sheet1!A2","v":0}]
["Time","RPM","RPM / 100","RPM / 1000","Exhaust camshaft (Target)","Exhaust camshaft (Actual)","Intake camshaft (Target)","Intake camshaft (Actual)"]

{"sheet":"Speed Data","index":14,"n_rows":3,"n_cols":8,"rows_kept":3,"cut":false,"hidden":false,"merged":[[0,0,0,1],[1,0,1,1]]}
["First Line",null,{"$f":"Sheet1!A1","v":0}]
["Last Line",null,{"$f":"Sheet1!A2","v":0}]
["Time","RPM","Speed","RPM / 100","Speed (mph)","Throttle %","Engine Load","Engine Load x 10"]

{"sheet":"Sheet1","index":15,"n_rows":3,"n_cols":35,"rows_kept":3,"cut":false,"hidden":false,"merged":[]}
[null,"MIN --->",{"$f":"MIN(C4:C4)","v":0},{"$f":"MIN(D4:D4)","v":0},{"$f":"MIN(E4:E4)","v":0},{"$f":"MIN(F4:F4)","v":0},{"$f":"MIN(G4:G4)","v":0},{"$f":"MIN(H4:H4)","v":0},{"$f":"MIN(I4:I4)","v":0},{"$f":"MIN(J4:J4)","v":0},{"$f":"MIN(K4:K4)","v":0},{"$f":"MIN(L4:L4)","v":0},{"$f":"MIN(M4:M4)","v":0},{"$f":"MIN(N4:N4)","v":0},{"$f":"MIN(O4:O4)","v":0},{"$f":"MIN(P4:P4)","v":0},{"$f":"MIN(Q4:Q4)","v":0},{"$f":"MIN(R4:R4)","v":0},{"$f":"MIN(S4:S4)","v":0},{"$f":"MIN(T4:T4)","v":0},{"$f":"MIN(U4:U4)","v":0},{"$f":"MIN(V4:V4)","v":0},{"$f":"MIN(W4:W4)","v":0},{"$f":"MIN(X4:X4)","v":0},{"$f":"MIN(Y4:Y4)","v":0},{"$f":"MIN(Z4:Z4)","v":0},{"$f":"MIN(AA4:AA4)","v":0},{"$f":"MIN(AB4:AB4)","v":0},{"$f":"MIN(AC4:AC4)","v":0},{"$f":"MIN(AD4:AD4)","v":0},{"$f":"MIN(AE4:AE4)","v":0},{"$f":"MIN(AF4:AF4)","v":0},{"$f":"MIN(AG4:AG4)","v":0},{"$f":"MIN(AH4:AH4)","v":0},{"$f":"MIN(AI4:AI4)","v":0}]
[null,"MAX --->",{"$f":"MAX(C4:C4)","v":0},{"$f":"MAX(D4:D4)","v":0},{"$f":"MAX(E4:E4)","v":0},{"$f":"MAX(F4:F4)","v":0},{"$f":"MAX(G4:G4)","v":0},{"$f":"MAX(H4:H4)","v":0},{"$f":"MAX(I4:I4)","v":0},{"$f":"MAX(J4:J4)","v":0},{"$f":"MAX(K4:K4)","v":0},{"$f":"MAX(L4:L4)","v":0},{"$f":"MAX(M4:M4)","v":0},{"$f":"MAX(N4:N4)","v":0},{"$f":"MAX(O4:O4)","v":0},{"$f":"MAX(P4:P4)","v":0},{"$f":"MAX(Q4:Q4)","v":0},{"$f":"MAX(R4:R4)","v":0},{"$f":"MAX(S4:S4)","v":0},{"$f":"MAX(T4:T4)","v":0},{"$f":"MAX(U4:U4)","v":0},{"$f":"MAX(V4:V4)","v":0},{"$f":"MAX(W4:W4)","v":0},{"$f":"MAX(X4:X4)","v":0},{"$f":"MAX(Y4:Y4)","v":0},{"$f":"MAX(Z4:Z4)","v":0},{"$f":"MAX(AA4:AA4)","v":0},{"$f":"MAX(AB4:AB4)","v":0},{"$f":"MAX(AC4:AC4)","v":0},{"$f":"MAX(AD4:AD4)","v":0},{"$f":"MAX(AE4:AE4)","v":0},{"$f":"MAX(AF4:AF4)","v":0},{"$f":"MAX(AG4:AG4)","v":0},{"$f":"MAX(AH4:AH4)","v":0},{"$f":"MAX(AI4:AI4)","v":0}]
["TIME","time","Intake temp.","Shut-off cylinders count","Exhaust camshaft pos. actual","Exhaust camshaft pos. expected","Throttle Position","Intake camshaft pos. actual","Intake camshaft pos. expected","Speed","Lambdaintegrator 1","Lambdaintegrator 2","Knock sensor #1","Knock sensor #2","Knock sensor #3","Knock sensor #4","Knock sensor #5","Knock sensor #6","Lambdaregulator factor bank1","Lambdaregulator factor bank2","RPM","Coolant temp.","Oil temp.","Engine load","Injection time #1","Injection time #2","Battery voltage","Air mass","Ignition angle","ZUENDUNG0_AKTIV","ZUENDUNG1_AKTIV","ZUENDUNG2_AKTIV","ZUENDUNG3_AKTIV","ZUENDUNG4_AKTIV","ZUENDUNG5_AKTIV"]